bitfinex/quotes_BTCUSD_20241025
["timestamp","ask_amount","ask_price","bid_price","bid_amount"]
[1729890580505,0.62779749,66960.0,66959.0,0.0015316]
[1729890580772,0.80451339,66960.0,66959.0,0.0015316]
[1729890581175,0.63279749,66960.0,66959.0,0.0015316]
[1729890581868,0.80451339,66960.0,66959.0,0.0015316]
[1729890582073,0.89231339,66960.0,66959.0,0.0015316]
[1729890582299,1.0428172,66960.0,66959.0,0.0015316]
[1729890582965,1.0408172,66960.0,66959.0,0.0015316]
[1729890583220,1.1305872,66960.0,66959.0,0.0015316]
[1729890583480,0.86985957,66960.0,66959.0,0.0015316]
[1729890583700,1.04157547,66960.0,66959.0,0.0015316]
[1729890584370,0.89031339,66960.0,66959.0,0.0015316]
[1729890584855,0.88713041,66960.0,66959.0,0.0015316]
[1729890585043,1.03763422,66960.0,66959.0,0.0015316]
[1729890586773,0.86591832,66960.0,66959.0,0.0015316]
[1729890587034,1.03763422,66960.0,66959.0,0.0015316]
[1729890587692,0.255,66954.0,66953.0,0.001644]
[1729890587931,0.87962851,66954.0,66953.0,0.001644]
[1729890589701,0.87910791,66954.0,66953.0,0.001644]
[1729890590353,0.8172817,66954.0,66953.0,0.001644]
[1729890592413,0.92915872,66954.0,66953.0,0.001644]
[1729890594360,0.92901636,66954.0,66953.0,0.001644]
[1729890596347,0.8171528,66954.0,66953.0,0.001644]
[1729890597821,0.92901636,66954.0,66953.0,0.001644]
[1729890599085,0.6647495,66954.0,66953.0,0.001644]
[1729890599291,0.92884625,66954.0,66953.0,0.001644]
[1729890600346,1.03873594,66954.0,66953.0,0.001644]
[1729890600586,0.159367,66949.0,66948.0,0.001644]
[1729890600849,0.57702638,66949.0,66948.0,0.001644]
[1729890601079,0.68886038,66949.0,66948.0,0.001644]
[1729890601557,0.57702638,66949.0,66948.0,0.001644]
[1729890601793,0.65648413,66949.0,66948.0,0.001644]
[1729890602734,0.29987081,66949.0,66948.0,0.001644]
[1729890603119,0.34459359,66949.0,66948.0,0.001644]
[1729890604009,0.04472278,66949.0,66948.0,0.001644]
[1729890604447,0.04472278,66950.0,66948.0,0.001644]
[1729890605081,0.04472278,66951.0,66948.0,0.001644]
[1729890606394,0.1717274,66949.0,66948.0,0.001644]
[1729890612881,0.4217274,66954.0,66948.0,0.001644]
[1729890613087,0.22450889,66953.0,66948.0,0.001644]
[1729890613301,0.4217274,66954.0,66948.0,0.001644]
[1729890613515,0.4225494,66954.0,66948.0,0.001644]
[1729890613788,0.4225494,66954.0,66951.0,0.1852]
[1729890613983,0.000822,66954.0,66951.0,0.334561]
[1729890614198,0.000822,66954.0,66952.0,0.1852]
[1729890614417,0.000822,66954.0,66953.0,0.255358]
[1729890616995,0.000822,66954.0,66953.0,0.333258]
[1729890625221,0.000822,66954.0,66953.0,0.48376181]
[1729890625395,0.000822,66960.0,66959.0,0.005]
[1729890625599,0.000822,66960.0,66959.0,0.49183525]
[1729890625806,0.000822,66960.0,66959.0,0.49352403]
[1729890626709,0.000822,66960.0,66959.0,0.48884881]
[1729890626920,0.000822,66960.0,66959.0,0.49352328]
[1729890630414,0.000822,66960.0,66959.0,0.49352321]
[1729890631698,0.000822,66960.0,66959.0,0.49552321]
[1729890631900,0.000822,66960.0,66959.0,0.49352321]
[1729890633442,0.000822,66960.0,66959.0,0.52344321]
[1729890633656,0.000822,66960.0,66959.0,0.49352321]
[1729890633832,0.000822,66960.0,66959.0,0.49352302]
[1729890634683,0.000822,66960.0,66959.0,0.49552302]
[1729890635114,0.000822,66960.0,66959.0,0.66525042]
[1729890635605,0.000822,66963.0,66962.0,0.015]
[1729890635726,0.22450889,66981.0,66976.0,0.348307]
[1729890635941,0.22450889,66981.0,66976.0,0.50081081]
[1729890636306,0.22450889,66988.0,66987.0,0.339282]
[1729890636519,0.22450889,66988.0,66987.0,0.51568361]
[1729890636699,0.22450889,66988.0,66987.0,0.52568361]
[1729890636955,0.00077242,66996.0,66994.0,0.149267]
[1729890637169,0.22456091,67011.0,67010.0,0.149231]
[1729890637614,5.202e-05,67011.0,67010.0,0.149231]
[1729890642307,5.202e-05,67011.0,67010.0,0.37373989]
[1729890642530,5.202e-05,67011.0,67010.0,0.149231]
[1729890645297,0.22619889,67021.0,67018.0,0.149212]
[1729890645501,0.22619889,67021.0,67010.0,0.298462]
[1729890645502,0.3767027,67021.0,67010.0,0.298462]
[1729890645711,0.15219381,67021.0,67018.0,0.149212]
[1729890646134,0.00169,67021.0,67020.0,0.149209]
[1729890648338,0.00169,67021.0,67019.0,0.149209]
[1729890649472,0.00169,67021.0,67020.0,0.149209]
[1729890654526,0.000845,67026.0,67022.0,0.149202]
[1729890655180,0.000845,67026.0,67021.0,0.298413]
[1729890655181,0.000845,67026.0,67023.0,0.149201]
[1729890655831,0.000845,67026.0,67019.0,0.298422]
[1729890656038,0.000845,67026.0,67021.0,0.149204]
[1729890656249,0.000845,67026.0,67024.0,0.149198]
[1729890656455,0.000845,67026.0,67022.0,0.149203]
[1729890656661,0.000845,67026.0,67021.0,0.298413]
[1729890657088,0.000845,67026.0,67022.0,0.149204]
[1729890657726,0.000845,67026.0,67021.0,0.298413]
[1729890657957,0.000845,67026.0,67023.0,0.149202]
[1729890658162,0.000845,67026.0,67021.0,0.298413]
[1729890658380,0.000845,67026.0,67022.0,0.149203]
[1729890658601,0.000845,67026.0,67021.0,0.298413]
[1729890658847,0.000845,67026.0,67019.0,0.22450889]
[1729890658848,0.000845,67026.0,67025.0,0.149198]
[1729890659067,0.000845,67026.0,67019.0,0.22450889]
[1729890659285,0.000845,67026.0,67025.0,0.149198]
[1729890659542,0.000845,67026.0,67023.0,0.149201]
[1729890659758,0.000845,67026.0,67024.0,0.149199]
[1729890659966,0.000845,67026.0,67023.0,0.149202]
[1729890660423,0.000845,67026.0,67024.0,0.149199]
[1729890660653,0.000845,67026.0,67025.0,0.149198]
[1729890660895,0.000845,67026.0,67024.0,0.149199]
[1729890661106,0.000845,67026.0,67023.0,0.149201]
[1729890661550,0.000845,67026.0,67024.0,0.149198]
[1729890661767,0.15050381,67025.0,67020.0,0.149209]
[1729890661987,0.15050381,67025.0,67018.0,0.149212]
[1729890662487,0.15050381,67025.0,67019.0,0.14921]
[1729890662715,0.15050381,67025.0,67018.0,0.298427]
[1729890662954,0.15050381,67025.0,67020.0,0.1717274]
[1729890663184,0.15050381,67025.0,67021.0,0.149206]
[1729890664173,0.104,67031.0,67020.0,0.1717274]
[1729890664174,0.11800306,67033.0,67024.0,0.1717274]
[1729890664406,0.41200889,67039.0,67032.0,0.1717274]
[1729890664666,0.15059381,67034.0,67033.0,0.14918]
[1729890664897,0.15059381,67034.0,67032.0,0.1717274]
[1729890665153,0.15059381,67034.0,67033.0,0.00467051]
[1729890665398,0.15059381,67034.0,67033.0,0.15385051]
[1729890667728,9e-05,67034.0,67033.0,0.15385051]
[1729890668191,9e-05,67034.0,67033.0,0.23045051]
[1729890668840,0.22450889,67046.0,67033.0,0.23045051]
[1729890668841,0.22381699,67046.0,67033.0,0.08127051]
[1729890669062,0.15050381,67045.0,67042.0,0.149159]
[1729890669525,0.15050381,67045.0,67040.0,0.4700534]
[1729890669526,0.08,67050.0,67044.0,0.1717274]
[1729890669780,0.08,67050.0,67049.0,0.149144]
[1729890669982,0.08,67050.0,67045.0,0.30297667]
[1729890669983,0.08,67050.0,67046.0,0.298302]
[1729890670215,0.08,67050.0,67043.0,0.298315]
[1729890670413,0.08,67050.0,67044.0,0.00466946]
[1729890670635,0.08,67050.0,67049.0,0.149144]
[1729890670856,0.08,67050.0,67047.0,0.149147]
[1729890671074,0.08,67050.0,67048.0,0.149146]
[1729890671730,0.08,67050.0,67049.0,0.149144]
[1729890672190,0.08,67050.0,67049.0,0.15381318]
[1729890674153,0.03331521,67050.0,67049.0,0.15381318]
[1729890674371,0.03331521,67050.0,67049.0,0.15679594]
[1729890674605,0.03331521,67050.0,67049.0,0.15381318]
[1729890675119,0.03331521,67050.0,67049.0,0.15381294]
[1729890675551,0.03331521,67050.0,67049.0,0.149144]
[1729890683649,0.03331521,67050.0,67049.0,0.338244]
[1729890684925,0.03331521,67050.0,67049.0,0.34455243]
[1729890685152,0.03413521,67050.0,67049.0,0.34455243]
[1729890691552,0.03413521,67050.0,67049.0,0.49505624]
[1729890693199,0.03413521,67050.0,67049.0,0.34455243]
[1729890696895,0.03413521,67050.0,67049.0,0.34455237]
[1729890697133,0.03413521,67050.0,67049.0,0.339884]
[1729890697367,0.03413521,67050.0,67049.0,0.34455236]
[1729890701645,0.03413521,67050.0,67049.0,0.15545236]
[1729890707859,0.03413521,67050.0,67049.0,0.15173436]
[1729890708088,0.03413521,67050.0,67049.0,0.15173481]
[1729890713198,0.03413521,67050.0,67049.0,0.00630881]
[1729890713413,0.03413521,67050.0,67049.0,0.15545281]
[1729890717443,0.03413521,67050.0,67049.0,0.150784]
[1729890721469,0.03413521,67050.0,67049.0,0.40638042]
[1729890722389,0.03413521,67050.0,67049.0,0.34414377]
[1729890722656,0.03413521,67050.0,67049.0,0.26494377]
[1729890722889,0.03413521,67050.0,67049.0,0.15545302]
[1729890723116,0.03413521,67050.0,67049.0,0.15545298]
[1729890723322,0.03413521,67050.0,67049.0,0.150784]
[1729890723786,0.03413521,67050.0,67049.0,0.26027475]
[1729890724715,0.03413521,67050.0,67049.0,0.150784]
[1729890729469,0.03413521,67050.0,67049.0,0.00164]
[1729890730620,0.18463902,67050.0,67049.0,0.00164]
[1729890732445,0.22938811,67050.0,67049.0,0.00164]
[1729890732670,0.18463902,67050.0,67049.0,0.00164]
[1729890741580,0.03413521,67050.0,67049.0,0.32198529]
[1729890742051,0.03413521,67050.0,67049.0,0.3266542]
[1729890742294,0.03413521,67050.0,67049.0,0.5181542]
[1729890742717,0.03413521,67050.0,67049.0,0.34695291]
[1729890743156,0.03413521,67050.0,67049.0,0.00630891]
[1729890743428,0.03413521,67050.0,67049.0,0.00164]
[1729890743645,0.18463902,67050.0,67049.0,0.00164]
[1729890748008,0.21428553,67050.0,67049.0,0.00164]
[1729890748227,0.30438501,67050.0,67049.0,0.00164]
[1729890748446,0.25963902,67050.0,67049.0,0.00164]
[1729890750238,0.18463902,67050.0,67049.0,0.00164]
[1729890753220,0.22938953,67050.0,67049.0,0.00164]
[1729890753669,0.18463902,67050.0,67049.0,0.00164]
[1729890754113,0.22938953,67050.0,67049.0,0.00164]
[1729890754548,0.18463902,67050.0,67049.0,0.00164]
[1729890757620,0.22939285,67050.0,67049.0,0.00164]
[1729890758118,0.2903729,67050.0,67049.0,0.00164]
[1729890758546,0.25176977,67050.0,67049.0,0.00164]
[1729890759011,0.28233902,67050.0,67049.0,0.00164]
[1729890759229,0.59721333,67050.0,67049.0,0.00164]
[1729890759453,0.44807133,67050.0,67049.0,0.00164]
[1729890759928,0.59721333,67050.0,67049.0,0.00164]
[1729890760134,0.44807133,67050.0,67049.0,0.00164]
[1729890760360,0.74771714,67050.0,67049.0,0.00164]
[1729890760599,0.59857514,67050.0,67049.0,0.00164]
[1729890761721,0.74771714,67050.0,67049.0,0.00164]
[1729890762201,0.7467,67050.0,67049.0,0.00164]
[1729890762677,0.597558,67050.0,67049.0,0.00164]
[1729890763143,0.7467,67050.0,67049.0,0.00164]
[1729890763801,0.595558,67050.0,67049.0,0.00164]
[1729890764970,0.7467,67050.0,67049.0,0.00164]
[1729890765647,0.597558,67050.0,67049.0,0.00164]
[1729890766524,0.7467,67050.0,67049.0,0.00164]
[1729890767637,0.44505419,67050.0,67049.0,0.00164]
[1729890768814,0.36235419,67050.0,67049.0,0.00164]
[1729890769471,0.4718741,67050.0,67049.0,0.00164]
[1729890769700,0.8221161,67050.0,67049.0,0.00164]
[1729890769917,0.9119561,67050.0,67049.0,0.00164]
[1729890770173,1.19667344,67050.0,67049.0,0.00164]
[1729890770396,1.06245991,67050.0,67049.0,0.00164]
[1729890771489,1.06116138,67050.0,67049.0,0.00164]
[1729890771710,1.19525799,67050.0,67049.0,0.00164]
[1729890772177,1.06116138,67050.0,67049.0,0.00164]
[1729890772395,1.1952445,67050.0,67049.0,0.00164]
[1729890777221,1.30476441,67050.0,67049.0,0.00164]
[1729890777430,0.497086,67030.0,67029.0,0.22450889]
[1729890777642,0.60860591,67030.0,67029.0,0.22450889]
[1729890778087,0.005,67023.0,67021.0,0.001642]
[1729890778310,0.015,67022.0,67021.0,0.001642]
[1729890778548,0.164204,67022.0,67021.0,0.001642]
[1729890778776,0.015,67022.0,67021.0,0.001642]
[1729890779226,0.16550381,67022.0,67021.0,0.001642]
[1729890779459,0.16550381,67022.0,67021.0,0.080742]
[1729890779460,0.15050381,67022.0,67021.0,0.080742]
[1729890780391,0.005,67031.0,67021.0,0.080742]
[1729890780600,0.15050381,67030.0,67022.0,0.109]
[1729890780828,0.005,67028.0,67024.0,0.149199]
[1729890781047,0.15050381,67027.0,67022.0,0.109]
[1729890781263,0.15050381,67027.0,67023.0,0.149202]
[1729890782341,0.15050381,67027.0,67022.0,0.109]
[1729890782556,0.15050381,67027.0,67022.0,0.258204]
[1729890782772,0.15050381,67027.0,67022.0,0.109]
[1729890784875,0.15050381,67027.0,67023.0,0.149202]
[1729890785047,0.15050381,67027.0,67022.0,0.109]
[1729890785878,0.15050381,67027.0,67022.0,0.258204]
[1729890786731,0.0446802,67036.0,67026.0,0.22450889]
[1729890786732,0.0496802,67036.0,67026.0,0.22450889]
[1729890786936,0.3800127,67035.0,67027.0,0.149192]
[1729890787170,0.15550381,67035.0,67027.0,0.149192]
[1729890788045,0.15550381,67035.0,67029.0,0.149187]
[1729890788279,0.15550381,67035.0,67028.0,0.14919]
[1729890789117,0.15550381,67035.0,67027.0,0.149193]
[1729890791060,0.15550381,67035.0,67026.0,0.298391]
[1729890791269,0.15550381,67035.0,67027.0,0.149191]
[1729890792117,0.15550381,67035.0,67027.0,0.149192]
[1729890793192,0.15550381,67035.0,67026.0,0.298391]
[1729890793415,0.15550381,67035.0,67027.0,0.149191]
[1729890793629,0.154183,67032.0,67025.0,0.1881]
[1729890793873,0.15050381,67031.0,67022.0,0.001644]
[1729890794081,0.15050381,67031.0,67024.0,0.22450889]
[1729890794539,0.15050381,67031.0,67022.0,0.001644]
[1729890796256,0.15050381,67031.0,67022.0,0.150847]
[1729890796902,0.15050381,67031.0,67022.0,0.150846]
[1729890797112,0.15050381,67031.0,67023.0,0.149201]
[1729890797987,0.15050381,67031.0,67022.0,0.001644]
[1729890798218,0.15550381,67031.0,67022.0,0.001644]
[1729890798429,0.15550381,67031.0,67023.0,0.22450889]
[1729890798430,0.005,67028.0,67023.0,0.22450889]
[1729890798674,0.15050381,67027.0,67023.0,0.22450889]
[1729890798852,0.15050381,67027.0,67022.0,0.001644]
[1729890799075,0.005,67024.0,67022.0,0.001644]
[1729890799310,0.15050381,67023.0,67022.0,0.001644]
[1729890807636,0.15050381,67023.0,67022.0,0.330948]
[1729890807865,0.15050381,67023.0,67022.0,0.181744]
[1729890809067,0.04465891,67026.0,67025.0,0.149198]
[1729890809288,0.005,67035.0,67029.0,0.1801]
[1729890809289,0.04465891,67032.0,67029.0,0.1801]
[1729890809525,0.04465891,67033.0,67032.0,0.149182]
[1729890809735,0.15050381,67033.0,67030.0,0.32047481]
[1729890809972,0.15050381,67033.0,67029.0,0.1801]
[1729890809973,0.15050381,67033.0,67031.0,0.149184]
[1729890810229,0.15050381,67033.0,67029.0,0.1801]
[1729890810450,0.15050381,67033.0,67032.0,0.149182]
[1729890811312,0.15050381,67033.0,67030.0,0.149185]
[1729890811534,0.15050381,67033.0,67031.0,0.149183]
[1729890813370,0.15050381,67033.0,67032.0,0.149182]
[1729890814260,0.15050381,67033.0,67030.0,0.149185]
[1729890815369,0.15050381,67033.0,67029.0,0.1801]
[1729890815802,0.15050381,67033.0,67029.0,0.329288]
[1729890816232,0.15050381,67033.0,67030.0,0.149186]
[1729890816503,0.19516272,67033.0,67030.0,0.149186]
[1729890816956,0.19516272,67033.0,67029.0,0.1801]
[1729890817403,0.19516272,67033.0,67029.0,0.329287]
[1729890818519,0.15050381,67032.0,67029.0,0.1049]
[1729890818757,0.15050381,67032.0,67021.0,0.300054]
[1729890818758,0.15050381,67032.0,67021.0,0.001642]
[1729890818759,0.005,67024.0,67021.0,0.001642]
[1729890818970,0.3444625,67023.0,67022.0,0.22615289]
[1729890819191,0.21763885,67023.0,67022.0,0.22615289]
[1729890819405,0.31557433,67023.0,67022.0,0.001644]
[1729890820491,0.15050381,67023.0,67022.0,0.001644]
[1729890821366,0.27570836,67023.0,67022.0,0.001644]
[1729890821597,0.70664731,67023.0,67022.0,0.001644]
[1729890821845,0.59500003,67023.0,67022.0,0.001644]
[1729890822490,0.59700003,67023.0,67022.0,0.001644]
[1729890822709,0.60500003,67023.0,67022.0,0.001644]
[1729890824887,0.60700003,67023.0,67022.0,0.001644]
[1729890827791,0.60700003,67023.0,67021.0,0.001642]
[1729890827792,0.166204,67022.0,67021.0,0.001642]
[1729890828015,0.63230129,67022.0,67021.0,0.001642]
[1729890829555,0.71080129,67022.0,67021.0,0.001642]
[1729890830849,0.71339713,67022.0,67021.0,0.001642]
[1729890831045,0.71016655,67022.0,67021.0,0.001642]
[1729890832342,0.70816655,67022.0,67021.0,0.001642]
[1729890833652,0.71016655,67022.0,67021.0,0.001642]
[1729890834276,0.70816655,67022.0,67021.0,0.001642]
[1729890834855,0.71016655,67022.0,67021.0,0.001642]
[1729890835679,0.71025162,67022.0,67021.0,0.001642]
[1729890837866,0.80009162,67022.0,67021.0,0.001642]
[1729890838094,0.71025162,67022.0,67021.0,0.001642]
[1729890840576,0.70981401,67022.0,67021.0,0.001642]
[1729890844489,0.81947926,67022.0,67021.0,0.001642]
[1729890845355,0.82030126,67022.0,67021.0,0.001642]
[1729890845800,0.4796322,67022.0,67021.0,0.001642]
[1729890846250,0.6517322,67022.0,67021.0,0.001642]
[1729890846460,0.6537322,67022.0,67021.0,0.001642]
[1729890847641,0.76339745,67022.0,67021.0,0.001642]
[1729890847878,0.6537322,67022.0,67021.0,0.001642]
[1729890848110,0.6480722,67022.0,67021.0,0.001642]
[1729890848318,0.64886246,67022.0,67021.0,0.001642]
[1729890848574,0.97078041,67022.0,67021.0,0.001642]
[1729890849065,1.67078041,67022.0,67021.0,0.001642]
[1729890849277,1.66878041,67022.0,67021.0,0.001642]
[1729890850350,1.67078041,67022.0,67021.0,0.001642]
[1729890850563,0.97078041,67022.0,67021.0,0.001642]
[1729890851659,0.9733762,67022.0,67021.0,0.001642]
[1729890852091,1.6733762,67022.0,67021.0,0.001642]
[1729890853009,1.67334588,67022.0,67021.0,0.001642]
[1729890853868,1.67134588,67022.0,67021.0,0.001642]
[1729890854320,0.97134588,67022.0,67021.0,0.001642]
[1729890854526,0.97134022,67022.0,67021.0,0.001642]
[1729890854973,0.89674022,67022.0,67021.0,0.001642]
[1729890855820,0.73188355,67022.0,67021.0,0.001642]
[1729890856482,0.89676128,67022.0,67021.0,0.001642]
[1729890858503,0.95647328,67022.0,67021.0,0.001642]
[1729890859823,0.54271533,67022.0,67021.0,0.001642]
[1729890860040,0.48300333,67022.0,67021.0,0.001642]
[1729890860281,0.48040754,67022.0,67021.0,0.001642]
[1729890860519,0.48240754,67022.0,67021.0,0.001642]
[1729890862947,0.48040754,67022.0,67021.0,0.001642]
[1729890863165,0.75398549,67022.0,67021.0,0.001642]
[1729890863596,0.75598549,67022.0,67021.0,0.001642]
[1729890863802,0.75398549,67022.0,67021.0,0.001642]
[1729890864234,0.61998962,67022.0,67021.0,0.001642]
[1729890865164,0.62044805,67022.0,67021.0,0.001642]
[1729890869645,0.48086597,67022.0,67021.0,0.001642]
[1729890871938,0.32666197,67022.0,67021.0,0.177642]
[1729890872155,0.46612145,67022.0,67021.0,0.177642]
[1729890872427,0.33166197,67022.0,67021.0,0.177642]
[1729890874587,0.31670999,67022.0,67021.0,0.177642]
[1729890874845,0.31670999,67022.0,67021.0,0.49816168]
[1729890875081,0.25580574,67022.0,67021.0,0.49816168]
[1729890875303,0.06799923,67022.0,67021.0,0.49816168]
[1729890876358,0.000822,67022.0,67021.0,0.49816168]
[1729890877449,0.04558373,67022.0,67021.0,0.49816168]
[1729890878350,0.000822,67022.0,67021.0,0.49816168]
[1729890889184,0.000822,67022.0,67021.0,0.326848]
[1729890894598,0.000822,67022.0,67021.0,0.43640899]
[1729890900322,0.000822,67022.0,67021.0,0.54596998]
[1729890900543,0.000822,67022.0,67021.0,0.55064064]
[1729890900752,0.000822,67022.0,67021.0,0.44107959]
[1729890900996,0.000822,67022.0,67021.0,0.43640899]
[1729890901442,0.000822,67022.0,67021.0,0.326848]
[1729890901677,0.000822,67022.0,67021.0,0.43640899]
[1729890904648,0.000822,67022.0,67021.0,0.54596998]
[1729890905114,0.22450889,67043.0,67042.0,0.14916]
[1729890905354,0.22450889,67043.0,67042.0,0.32206]
[1729890905575,0.00223735,67047.0,67042.0,0.1729]
[1729890905799,0.00223735,67047.0,67046.0,0.149151]
[1729890905800,0.15274116,67047.0,67046.0,0.149151]
[1729890906022,0.15274116,67047.0,67046.0,0.25871199]
[1729890906023,0.00223735,67047.0,67046.0,0.25871199]
[1729890908055,0.000822,67049.0,67046.0,0.25871199]
[1729890908056,0.000822,67049.0,67048.0,0.149146]
[1729890908273,0.000822,67049.0,67048.0,0.15212861]
[1729890908484,0.000822,67049.0,67048.0,0.32322198]
[1729890908706,0.000822,67049.0,67048.0,0.39443937]
[1729890909572,0.000822,67049.0,67048.0,0.56733937]
[1729890917337,0.000822,67049.0,67048.0,0.57233937]
[1729890918694,0.000822,67049.0,67048.0,0.57700777]
[1729890919142,0.000822,67049.0,67048.0,0.90860495]
[1729890919363,0.000822,67049.0,67048.0,0.74567572]
[1729890920637,0.000822,67049.0,67048.0,0.40907854]
[1729890920845,0.000822,67049.0,67048.0,0.396246]
[1729890925040,0.000822,67049.0,67048.0,0.40442023]
[1729890927238,0.000822,67049.0,67048.0,0.4090887]
[1729890929244,0.000822,67049.0,67048.0,0.40908864]
[1729890929736,0.000822,67049.0,67048.0,0.40185212]
[1729890932979,0.000822,67049.0,67048.0,0.39718371]
[1729890933175,0.000822,67049.0,67048.0,0.40185211]
[1729890934561,0.000822,67049.0,67048.0,0.40685211]
[1729890935220,0.000822,67049.0,67048.0,0.55735592]
[1729890936721,0.000822,67049.0,67048.0,0.55268752]
[1729890937195,0.000822,67049.0,67048.0,0.55735589]
[1729890940294,0.000822,67049.0,67048.0,0.55268752]
[1729890940503,0.000822,67049.0,67048.0,0.55735582]
[1729890942439,0.000822,67049.0,67048.0,0.22077778]
[1729890944056,0.000822,67049.0,67048.0,0.22077797]
[1729890945890,0.000822,67049.0,67048.0,0.22376047]
[1729890946151,0.000822,67049.0,67048.0,0.22077797]
[1729890947977,0.000822,67049.0,67048.0,0.22040797]
[1729890948842,0.0042177,67049.0,67048.0,0.22040797]
[1729890949510,0.0042177,67049.0,67048.0,0.22204997]
[1729890950419,0.0042177,67049.0,67048.0,0.33153146]
[1729890951125,0.0042177,67049.0,67048.0,0.33153176]
[1729890952406,0.0042177,67049.0,67048.0,0.39316244]
[1729890958243,0.0042177,67049.0,67048.0,0.38849365]
[1729890958913,0.0042177,67049.0,67048.0,0.39316236]
[1729890960619,0.0042177,67049.0,67048.0,0.22205019]
[1729890962001,0.23462151,67049.0,67048.0,0.08051071]
[1729890962212,0.27940707,67049.0,67048.0,0.075842]
[1729890962436,0.27939247,67049.0,67048.0,0.224988]
[1729890962650,0.27939247,67049.0,67048.0,0.075842]
[1729890963092,0.27939247,67049.0,67048.0,0.224988]
[1729890963329,0.27939247,67049.0,67048.0,0.075842]
[1729890963557,0.23462151,67049.0,67048.0,0.075842]
[1729890964721,0.55179986,67049.0,67048.0,0.075842]
[1729890965398,0.70588975,67049.0,67048.0,0.075842]
[1729890965593,0.79836984,67049.0,67048.0,0.075842]
[1729890965813,0.64922584,67049.0,67048.0,0.075842]
[1729890966043,0.79836984,67049.0,67048.0,0.075842]
[1729890966296,0.73126551,67049.0,67048.0,0.075842]
[1729890966534,0.89640712,67049.0,67048.0,0.075842]
[1729890966998,0.90640712,67049.0,67048.0,0.075842]
[1729890967236,0.90840712,67049.0,67048.0,0.075842]
[1729890968853,0.90640712,67049.0,67048.0,0.075842]
[1729890969070,0.90140712,67049.0,67048.0,0.075842]
[1729890969297,0.89640712,67049.0,67048.0,0.075842]
[1729890969509,0.90640712,67049.0,67048.0,0.075842]
[1729890969725,0.73909327,67049.0,67048.0,0.075842]
[1729890969942,0.52928419,67049.0,67048.0,0.075842]
[1729890970597,0.48462151,67049.0,67048.0,0.07544078]
[1729890971018,0.48462151,67049.0,67048.0,0.001642]
[1729890972208,0.76720483,67049.0,67048.0,0.001642]
[1729890972425,0.61806083,67049.0,67048.0,0.075442]
[1729890972656,0.64876551,67049.0,67048.0,0.075442]
[1729890974699,0.23462151,67049.0,67048.0,0.075442]
[1729890974924,0.15472151,67049.0,67048.0,0.224588]
[1729890975155,0.15972151,67049.0,67048.0,0.075442]
[1729890975387,0.15472151,67049.0,67048.0,0.075442]
[1729890975623,0.15472151,67049.0,67048.0,0.224588]
[1729890975846,0.15472151,67049.0,67048.0,0.075442]
[1729890976063,0.15472151,67049.0,67048.0,0.224588]
[1729890976525,0.15472151,67049.0,67048.0,0.075442]
[1729890976738,0.14972151,67049.0,67048.0,0.224588]
[1729890976991,0.14972151,67049.0,67048.0,0.075442]
[1729890978285,0.03413521,67050.0,67049.0,0.149144]
[1729890989299,0.03413521,67050.0,67049.0,0.225744]
[1729890991519,0.03413521,67050.0,67049.0,0.45025289]
[1729890991729,0.03413521,67050.0,67049.0,0.225744]
[1729890992203,0.18327721,67050.0,67049.0,0.0766]
[1729890992650,0.18327721,67050.0,67049.0,0.1711]
[1729890993354,0.18327721,67050.0,67048.0,0.075442]
[1729890993355,0.03413521,67050.0,67048.0,0.075442]
[1729890993662,0.30464781,67049.0,67048.0,0.075442]
[1729890993915,0.25,67036.0,67035.0,0.22450889]
[1729890994186,0.149184,67031.0,67030.0,0.22450889]
[1729890994422,0.149184,67031.0,67023.0,0.22615289]
[1729890994423,0.1492,67024.0,67023.0,0.22615289]
[1729890994904,0.1492,67024.0,67023.0,0.001644]
[1729890995841,0.149204,67022.0,67021.0,0.001642]
[1729890996133,0.14922,67015.0,67013.0,0.0766]
[1729890996371,0.149217,67017.0,67013.0,0.0766]
[1729890996866,0.149218,67016.0,67013.0,0.0766]
[1729890997124,0.22450889,67015.0,67006.0,0.17111217]
[1729890997407,0.22450889,67015.0,67000.0,0.308503]
[1729890997408,0.25,67013.0,67003.0,0.22450889]
[1729890997659,0.149242,67005.0,66997.0,0.0996]
[1729890997925,0.149242,67005.0,67004.0,0.22615089]
[1729890998148,0.149242,67005.0,67004.0,0.001642]
[1729890998638,0.399242,67005.0,67004.0,0.001642]
[1729891004366,0.54974581,67005.0,67004.0,0.001642]
[1729891006574,0.78937101,67005.0,67004.0,0.001642]
[1729891007779,0.72585798,67005.0,67004.0,0.001642]
[1729891011377,0.54974581,67005.0,67004.0,0.001642]
[1729891011610,0.55474581,67005.0,67004.0,0.001642]
[1729891013040,0.54974581,67005.0,67004.0,0.001642]
[1729891013278,0.55474581,67005.0,67004.0,0.001642]
[1729891023123,0.68884339,67005.0,67004.0,0.001642]
[1729891023787,0.55474581,67005.0,67004.0,0.001642]
[1729891025519,0.68975069,67005.0,67004.0,0.001642]
[1729891026415,0.55474581,67005.0,67004.0,0.001642]
[1729891027351,0.54974581,67005.0,67004.0,0.001642]
[1729891033549,0.55474581,67005.0,67004.0,0.001642]
[1729891033825,0.9603206,67005.0,67004.0,0.001642]
[1729891034053,0.9623206,67005.0,67004.0,0.001642]
[1729891034277,1.0520606,67005.0,67004.0,0.001642]
[1729891034545,1.0520606,67005.0,66987.0,0.22450889]
[1729891034546,0.39928,66988.0,66987.0,0.22450889]
[1729891034767,0.85588898,66988.0,66987.0,0.22450889]
[1729891035009,0.85588898,66988.0,66982.0,0.05]
[1729891035010,0.58661598,66988.0,66982.0,0.05]
[1729891035185,0.32040317,66983.0,66982.0,0.05]
[1729891035408,0.47090698,66983.0,66982.0,0.05]
[1729891039998,0.47894661,66983.0,66982.0,0.05]
[1729891042579,0.47894661,66983.0,66982.0,0.051644]
[1729891054275,0.47894661,66983.0,66982.0,0.001644]
[1729891054919,0.62945042,66983.0,66982.0,0.001644]
[1729891056257,0.47894661,66983.0,66982.0,0.001644]
[1729891060450,0.4176064,66983.0,66982.0,0.001644]
[1729891065139,0.79160606,66983.0,66982.0,0.001644]
[1729891065368,0.166293,66982.0,66981.0,0.001688]
[1729891065609,0.96246566,66982.0,66981.0,0.001688]
[1729891066079,0.59241793,66982.0,66981.0,0.001688]
[1729891066546,1.40218989,66982.0,66981.0,0.001688]